bitfinex-derivatives/quotes_ETHF0:USTF0_20210401
["timestamp","ask_amount","ask_price","bid_price","bid_amount"]
[1617310924791,9.04425831,1971.6,1971.4,1.56795]
[1617310937418,8.04435831,1971.6,1971.4,1.56795]
[1617310937816,7.78745831,1971.6,1971.4,1.56795]
[1617310938317,6.26885831,1971.6,1971.4,1.56795]
[1617310938617,5.26585831,1971.6,1971.4,1.56795]
[1617310938818,4.64325831,1971.6,1971.4,1.56795]
[1617310939818,4.42065831,1971.6,1971.4,1.56795]
[1617310940021,4.19855831,1971.6,1971.4,1.56795]
[1617310940220,3.58855831,1971.6,1971.4,1.56795]
[1617310940523,2.57655831,1971.6,1971.4,1.56795]
[1617310941223,1.89855831,1971.6,1971.4,1.56795]
[1617310941824,1.82895831,1971.6,1971.4,1.56795]
[1617310942026,0.83095831,1971.6,1971.4,1.56795]
[1617310948838,0.30505831,1971.6,1971.4,1.56795]
[1617310953647,0.05195831,1971.6,1971.4,1.56795]
[1617310955755,0.05195831,1971.6,1971.4,101.36305]
[1617310955950,0.05195831,1971.6,1971.4,1.56795]
[1617310959460,0.05195831,1971.6,1971.5,98.3748]
[1617310959758,0.05195831,1971.6,1971.4,1.56795]
[1617310959958,0.05195831,1971.6,1971.4,91.43815]
[1617310960159,0.05195831,1971.6,1971.4,1.56795]
[1617310962463,5.831e-05,1971.6,1971.4,1.56795]
[1617310965366,5.831e-05,1971.6,1971.5,90.7681]
[1617310965567,5.831e-05,1971.6,1971.4,1.56795]
[1617310973875,5.831e-05,1971.6,1971.4,98.57835]
[1617310974078,5.831e-05,1971.6,1971.4,1.56795]
[1617310984398,5.831e-05,1971.6,1971.4,94.44645]
[1617310984599,5.831e-05,1971.6,1971.4,1.56795]
[1617310985489,83.42165831,1972.6,1972.4,64.7331]
[1617310985700,83.42165831,1972.6,1972.4,66.0334]
[1617310986793,83.42165831,1972.6,1972.4,67.0576]
[1617310987292,83.42165831,1972.6,1972.5,2.90695]
[1617310989093,83.36165831,1972.6,1972.5,2.90695]
[1617310989596,79.15845831,1972.6,1972.5,2.90695]
[1617310993998,78.41055831,1972.6,1972.5,2.90695]
[1617310994901,2.90695,1972.7,1972.5,2.90695]
[1617310995101,2.65705,1972.7,1972.5,2.90695]
[1617310995601,2.90695,1972.9,1972.5,2.90695]
[1617310996602,0.69799067,1973.8,1972.9,80.9755]
[1617310996803,16.53683745,1973.9,1972.9,80.9755]
[1617310997702,14.53683745,1973.9,1973.3,2.90695]
[1617310999604,2.90695,1973.4,1973.3,2.90695]
[1617311002606,15.90695,1973.4,1973.3,2.90695]
[1617311003507,15.90695,1973.4,1973.3,68.00025]
[1617311005208,15.65375,1973.4,1973.3,68.00025]
[1617311011720,13.0,1973.4,1973.3,68.00025]
[1617311016523,13.0,1973.4,1973.3,2.90695]
[1617311019027,12.6963,1973.4,1973.3,2.90695]
[1617311020025,70.9368,1973.4,1973.3,2.90695]
[1617311021729,12.6963,1973.4,1973.3,2.90695]
[1617311023128,12.6963,1973.4,1973.3,65.66645]
[1617311030935,12.6963,1973.4,1973.3,2.90695]
[1617311034037,12.6963,1973.4,1973.3,67.54685]
[1617311036443,12.6963,1973.4,1973.3,64.6399]
[1617311038744,12.6963,1973.4,1973.3,67.54685]
[1617311043151,12.6963,1973.4,1973.3,64.6399]
[1617311043449,12.6963,1973.4,1973.3,67.54685]
[1617311044360,12.6963,1973.4,1973.3,64.6399]
[1617311045453,12.6963,1973.4,1973.3,67.54685]
[1617311055958,12.6963,1973.4,1973.3,2.90695]
[1617311057560,16.30298738,1973.4,1973.3,2.90695]
[1617311058160,15.60325,1973.4,1973.3,2.90695]
[1617311059461,16.53699038,1973.4,1973.3,2.90695]
[1617311062764,15.60325,1973.4,1973.3,2.90695]
[1617311063565,87.31555,1973.4,1973.3,2.90695]
[1617311065166,87.31555,1973.4,1973.3,3.92155]
[1617311065368,87.31555,1973.4,1973.3,2.90695]
[1617311066070,15.60325,1973.4,1973.3,2.90695]
[1617311073173,16.77091368,1973.4,1973.3,2.90695]
[1617311073673,15.60325,1973.4,1973.3,2.90695]
[1617311074173,15.60325,1973.4,1972.3,70.55]
[1617311074373,16.77091866,1973.4,1972.3,70.55]
[1617311074673,62.4332,1972.9,1972.3,70.55]
[1617311074874,62.4332,1972.9,1972.3,71.552]
[1617311075774,62.4332,1972.9,1972.8,2.90695]
[1617311080488,63.13428658,1972.9,1972.8,2.90695]
[1617311082287,63.13428658,1972.9,1972.3,71.552]
[1617311082586,64.59118658,1972.9,1972.3,71.552]
[1617311083188,2.15798658,1972.9,1972.3,1.002]
[1617311083588,79.2969,1972.4,1972.3,1.002]
[1617311083789,80.5104,1972.4,1972.3,1.002]
[1617311084088,80.5104,1972.4,1972.3,3.90895]
[1617311085090,78.5521,1972.4,1972.3,3.90895]
[1617311089897,5.06493658,1972.9,1972.3,3.90895]
[1617311090497,3.60803658,1972.9,1972.8,78.1625]
[1617311092000,2.90695,1972.9,1972.8,81.06945]
[1617311092200,2.90695,1972.9,1972.8,2.90695]
[1617311098611,4.03315,1972.9,1972.8,2.90695]
[1617311098811,4.73360428,1972.9,1972.8,2.90695]
[1617311101916,3.60740428,1972.9,1972.8,2.90695]
[1617311102717,2.90695,1972.9,1972.8,2.90695]
[1617311103417,3.60720143,1972.9,1972.8,2.90695]
[1617311103619,2.90695,1972.9,1972.8,2.90695]
[1617311104317,3.60719416,1972.9,1972.8,2.90695]
[1617311105017,2.90695,1972.9,1972.8,2.90695]
[1617311105420,32.90695,1972.9,1972.8,2.90695]
[1617311105818,33.60713815,1972.9,1972.8,2.90695]
[1617311111023,34.94443815,1972.9,1972.4,79.7495]
[1617311111426,1.02673928,1972.8,1972.4,79.7495]
[1617311111826,0.70093818,1972.7,1972.4,79.7495]
[1617311112125,0.70093818,1972.7,1972.5,2.90695]
[1617311114033,1.02654764,1972.7,1972.5,2.90695]
[1617311114232,2.90695,1972.6,1972.5,2.90695]
[1617311116537,3.60788172,1972.6,1972.5,2.90695]
[1617311116935,3.60788172,1972.6,1972.4,79.7495]
[1617311117136,70.7611,1972.5,1972.4,80.7597]
[1617311118238,70.7611,1972.5,1972.4,83.66665]
[1617311121142,70.7611,1972.5,1972.4,82.65645]
[1617311125547,2.90695,1972.6,1972.4,2.90695]
[1617311125964,3.60668199,1972.6,1972.4,2.90695]
[1617311128452,63.6601,1972.5,1972.4,3.92155]
[1617311130754,63.6601,1972.5,1972.4,2.90695]
[1617311131055,64.8723,1972.5,1972.4,2.90695]
[1617311132854,94.8723,1972.5,1972.4,2.90695]
[1617311138665,64.8723,1972.5,1972.4,2.90695]
[1617311139566,63.6601,1972.5,1972.4,2.90695]
[1617311139769,3.84080055,1972.6,1972.4,2.90695]
[1617311142975,0.70032942,1972.5,1972.4,2.90695]
[1617311143776,60.10502942,1972.5,1972.4,2.90695]
[1617311145777,59.4047,1972.5,1972.4,2.90695]
[1617311145978,60.10494062,1972.5,1972.4,2.90695]
[1617311146478,59.4047,1972.5,1972.4,2.90695]
[1617311148585,60.10463258,1972.5,1972.4,2.90695]
[1617311150684,61.44643258,1972.5,1972.4,2.90695]
[1617311156692,61.44643258,1972.5,1972.2,2.90695]
[1617311158795,2.90695,1972.3,1972.2,2.90695]
[1617311165600,2.90695,1972.3,1971.5,58.5904]
[1617311166001,0.05832357,1972.0,1971.5,58.5904]
[1617311166201,0.05832357,1972.0,1970.6,1.0157]
[1617311166401,83.2669,1971.8,1971.3,83.2669]
[1617311166901,83.2669,1971.8,1971.7,2.90695]
[1617311167301,83.32521181,1971.8,1971.7,2.90695]
[1617311171408,83.2669,1971.8,1971.7,2.90695]
[1617311171607,2.90695,1971.9,1971.7,2.90695]
[1617311171808,2.90695,1971.9,1971.8,82.4202]
[1617311172008,83.1206593,1972.2,1971.8,82.4202]
[1617311172808,86.0276093,1972.2,1972.1,2.90695]
[1617311173009,85.32715,1972.2,1972.1,2.90695]
[1617311179221,2.90695,1972.2,1972.1,2.90695]
[1617311180421,3.60742975,1972.2,1972.1,2.90695]
[1617311181222,3.84051232,1972.2,1972.1,2.90695]
[1617311181423,3.84051232,1972.2,1971.0,62.8467]
[1617311181723,2.90695,1972.2,1971.0,62.8467]
[1617311181923,0.0583338,1971.4,1971.0,62.8467]
[1617311182122,1.3581338,1971.4,1971.0,62.8467]
[1617311182322,1.3581338,1971.4,1970.1,3.0196]
[1617311182728,1.3581338,1971.4,1970.1,1.0196]
[1617311182922,63.4277,1971.1,1970.1,1.0196]
[1617311183423,0.05831893,1971.3,1970.1,1.0196]
[1617311183823,0.0583057,1971.2,1970.1,1.0196]
[1617311184136,0.05828541,1970.8,1970.1,1.0196]
[1617311184333,1.14378541,1970.8,1970.1,1.0196]
[1617311184525,0.05826804,1970.7,1970.1,1.0196]
[1617311184828,1.0855,1970.8,1970.1,1.0196]
[1617311185029,1.0855,1970.8,1970.7,2.90695]
[1617311185229,1.55138339,1970.8,1970.7,2.90695]
[1617311187031,4.45833339,1970.8,1970.7,2.90695]
[1617311187433,3.99245,1970.8,1970.7,2.90695]
[1617311188134,33.99245,1970.8,1970.1,1.0196]
[1617311188337,84.3095,1970.1,1968.7,86.3095]
[1617311188535,85.6473,1970.1,1968.7,86.3095]
[1617311188960,85.6473,1970.1,1970.0,2.90695]
[1617311195748,1.3378,1970.1,1970.0,2.90695]
[1617311195948,2.90695,1970.3,1970.0,2.90695]
[1617311197148,2.90695,1970.3,1970.2,2.90695]
[1617311197347,32.90695,1970.3,1970.2,2.90695]
[1617311198952,32.90695,1970.3,1970.0,2.90695]
[1617311199152,76.4935,1970.2,1970.0,2.90695]
[1617311199353,106.4935,1970.2,1970.0,2.90695]
[1617311201053,2.90695,1970.1,1970.0,2.90695]
[1617311201254,32.90695,1970.1,1970.0,2.90695]
[1617311204462,32.90695,1970.1,1968.8,1.0192]
[1617311205061,30.0,1970.1,1969.7,2.90695]
[1617311205461,78.8004,1969.7,1968.8,1.0192]
[1617311205763,110.1095,1969.7,1968.8,1.0192]
[1617311207061,110.1095,1969.7,1969.4,2.90695]
[1617311208365,80.1095,1969.7,1969.4,2.90695]
[1617311208565,1.3091,1969.7,1969.4,2.90695]
[1617311209163,1.3091,1969.7,1969.6,2.90695]
[1617311210665,43.6804,1970.1,1969.6,2.90695]
[1617311211271,4.44615,1969.7,1969.6,2.90695]
[1617311212165,34.44615,1969.7,1969.6,2.90695]
[1617311213080,4.44615,1969.7,1969.6,2.90695]
[1617311218477,2.90695,1969.7,1969.6,2.90695]
[1617311221484,13.6804,1970.1,1969.6,2.90695]
[1617311221782,84.4279,1970.0,1969.6,2.90695]
[1617311222484,13.7425,1970.2,1969.6,2.90695]
[1617311222683,13.7425,1970.2,1970.0,58.9784]
[1617311222886,13.7425,1970.2,1970.0,61.2451]
[1617311223309,13.7425,1970.2,1970.1,2.90695]
[1617311223888,2.90695,1970.6,1970.1,2.90695]
[1617311225286,2.90695,1970.6,1970.5,2.90695]
[1617311226888,2.90695,1970.6,1970.0,61.2451]
[1617311227388,2.90695,1970.6,1970.5,2.90695]
[1617311227788,2.90695,1970.6,1970.5,4.21115]
[1617311229891,2.90695,1970.6,1970.5,2.90695]
[1617311231893,2.90695,1970.6,1970.5,82.08715]
[1617311232297,14.625,1970.9,1970.5,82.08715]
[1617311233395,14.625,1970.9,1970.8,2.90695]
[1617311239407,44.625,1970.9,1970.8,2.90695]
[1617311239608,44.625,1970.9,1265.2,2.21289782]
[1617311239910,64.7909,1970.7,1970.0,64.7909]
[1617311240108,94.7909,1970.7,1970.0,64.7909]
[1617311241308,94.7909,1970.7,1970.4,2.90695]
[1617311241809,64.7909,1970.7,1970.4,2.90695]
[1617311243311,2.90695,1970.5,1970.4,2.90695]
[1617311243512,4.55705,1970.5,1970.4,2.90695]
[1617311246116,4.55705,1970.5,1970.0,64.7909]
[1617311247425,1.6501,1970.5,1970.3,2.90695]
[1617311249020,94.7909,1970.7,1970.3,2.90695]
[1617311249522,4.02165,1970.4,1970.3,2.90695]
[1617311261938,2.90695,1970.4,1970.3,2.90695]
[1617311265741,2.90695,1970.6,1970.3,2.90695]
[1617311266241,0.05811952,1970.4,1970.3,2.90695]
[1617311266441,0.02906058,1970.4,1970.3,2.90695]
[1617311267241,0.0581359,1970.4,1970.3,2.90695]
[1617311267742,0.02906943,1970.4,1970.3,2.90695]
[1617311277157,0.05827809,1970.4,1970.3,2.90695]
[1617311279660,7.809e-05,1970.4,1970.3,2.90695]
[1617311279858,0.02915365,1970.4,1970.3,2.90695]
[1617311280058,0.02917183,1970.6,1970.3,2.90695]
[1617311280264,0.02917183,1970.6,1970.4,78.1939]
[1617311280459,0.0291834,1970.8,1970.4,78.1939]
[1617311280861,0.02918749,1970.9,1970.4,78.1939]
[1617311281759,0.02919782,1971.0,1970.4,78.1939]
[1617311281963,0.02919782,1971.0,1970.9,2.90695]
[1617311282160,0.02919782,1971.0,1970.9,5.36995]
[1617311282562,58.1872,1971.9,1970.9,5.36995]
[1617311282563,0.02920208,1971.1,1970.9,5.36995]
[1617311283761,0.02921869,1971.2,1970.9,5.36995]
[1617311283963,0.02921869,1971.2,1971.1,2.90695]
[1617311285062,0.02921869,1971.2,1971.1,3.93315]
[1617311285863,0.70093548,1971.7,1971.6,2.90695]
[1617311286965,0.70100418,1971.8,1971.6,2.90695]
[1617311287165,0.70100418,1971.8,1971.6,72.78075]
[1617311288767,1.13274509,1971.9,1971.6,72.78075]
[1617311288967,0.70045815,1971.8,1971.6,72.78075]
[1617311291470,0.70045815,1971.8,1971.6,69.8738]
[1617311292170,0.70045815,1971.8,1971.7,2.90695]
[1617311293971,1.12919635,1971.9,1971.7,2.90695]
[1617311294270,0.70016874,1971.9,1971.7,2.90695]
[1617311294672,0.70016874,1971.9,1971.8,74.9514]
[1617311294971,3.84052248,1972.0,1971.8,74.9514]
[1617311295671,2.90695,1972.0,1971.8,74.9514]
[1617311296375,2.90695,1972.0,1971.9,2.90695]
[1617311297977,3.60556477,1972.0,1969.7,1.4534]
[1617311298176,58.1907,1971.5,1970.5,58.1907]
[1617311298378,0.02910577,1971.3,1971.1,2.90695]
[1617311298779,59.2599,1971.5,1971.1,2.90695]
[1617311298780,0.02910572,1971.2,1971.1,2.90695]
[1617311299383,59.2599,1971.5,1971.1,2.90695]
[1617311300380,2.90695,1971.2,1971.1,2.90695]
[1617311309991,2.90695,1971.2,1970.5,58.1907]
[1617311310593,0.69845394,1971.2,1970.9,2.90695]
[1617311311596,0.69845394,1971.2,1970.5,58.1907]
[1617311312396,0.02910366,1970.6,1970.5,58.1907]
[1617311312595,1.05220366,1970.6,1970.5,61.09765]
[1617311315302,1.05220366,1970.6,1970.5,2.90695]
[1617311315906,1.0231,1970.6,1970.5,2.90695]
[1617311316705,62.9746,1970.6,1970.5,2.90695]
[1617311323613,1.0231,1970.6,1970.5,2.90695]
[1617311323815,2.90695,1970.7,1970.5,2.90695]
[1617311324115,82.1751,1970.0,1969.9,81.1112]
[1617311324815,82.1751,1970.0,1969.9,84.01815]
[1617311327018,82.1751,1970.0,1969.9,81.1112]
[1617311328122,82.20428666,1970.0,1969.9,81.1112]
[1617311328320,82.1751,1970.0,1969.9,81.1112]
[1617311328618,82.20427668,1970.0,1969.9,81.1112]
[1617311328817,82.20427668,1970.0,1969.9,84.01815]
[1617311330621,82.1751,1970.0,1969.9,84.01815]
[1617311330819,82.20428326,1970.0,1969.9,81.1112]
[1617311331421,82.1751,1970.0,1969.9,81.1112]
[1617311338126,0.69953946,1970.3,1969.5,1.0183]
[1617311338327,1.4591,1970.0,1968.6,73.758]
[1617311338626,75.1348,1969.5,1968.6,73.758]
[1617311338826,1.3768,1969.5,1968.2,1.0001]
[1617311339728,1.40595397,1969.5,1968.2,1.0001]
[1617311340230,1.3768,1969.5,1968.2,1.0001]
[1617311340429,73.7162,1968.8,1968.2,1.0001]
[1617311340728,75.1131,1968.8,1968.2,1.0001]
[1617311341129,75.1131,1968.8,1968.7,2.90695]
[1617311343331,1.3969,1968.8,1968.7,2.90695]
[1617311345835,2.90695,1969.0,1968.7,2.90695]
[1617311347135,2.90695,1969.0,1968.9,2.90695]
[1617311353655,83.6219,1969.6,1968.9,2.90695]
[1617311353844,83.6219,1969.6,1969.3,63.2864]
[1617311354045,83.6219,1969.6,1969.3,64.481]
[1617311355146,83.6219,1969.6,1969.5,2.90695]
[1617311356447,27.8274,1969.9,1969.5,2.90695]
[1617311356648,13.5329,1969.9,1969.5,2.90695]
[1617311357149,13.5329,1969.9,1969.8,4.25515]
[1617311357349,13.5329,1969.9,1969.8,72.84535]
[1617311361152,14.1272,1970.2,1970.1,2.90695]
[1617311361653,68.5902,1970.6,1970.1,2.90695]
[1617311361952,2.93598377,1970.7,1970.1,2.90695]
[1617311362154,2.93598377,1970.7,1970.4,67.2335]
[1617311362353,2.93598377,1970.7,1970.4,68.5362]
[1617311362954,2.90695,1970.7,1970.4,68.5362]
[1617311363154,2.90695,1970.7,1970.6,2.90695]
[1617311363757,2.90695,1970.7,1970.4,68.5362]
[1617311365059,2.93604221,1970.7,1970.4,68.5362]
[1617311365360,2.90695,1970.5,1970.4,71.44315]
[1617311370564,2.90695,1970.5,1970.4,70.14045]
[1617311374375,2.93605072,1970.5,1970.4,70.14045]
[1617311375476,2.93605072,1970.5,1970.4,2.90695]
[1617311376376,73.12225072,1970.5,1970.4,2.90695]
[1617311383284,73.12225072,1970.5,1970.2,70.1862]
[1617311383787,0.02924225,1970.4,1970.2,70.1862]
[1617311385386,0.02924225,1970.4,1970.3,2.90695]
[1617311385787,73.09315,1970.5,1970.3,2.90695]
[1617311393897,73.09315,1970.5,1970.2,70.1862]
[1617311395599,2.90695,1970.3,1970.2,70.1862]
[1617311397603,2.90695,1970.3,1970.2,73.09315]
[1617311405011,3.37717144,1970.3,1970.2,73.09315]
[1617311405314,0.47022144,1970.3,1970.2,73.09315]
[1617311405513,0.47022144,1970.3,1970.2,2.90695]
[1617311407217,0.47067204,1970.4,1970.3,67.8479]
[1617311407917,0.47080101,1970.5,1970.3,67.8479]
[1617311408216,0.7070078,1970.5,1970.3,67.8479]
[1617311409518,4.08529634,1970.9,1970.2,2.90695]
[1617311409519,0.70693251,1970.4,1970.2,2.90695]
[1617311409721,1.15207122,1970.4,1970.2,2.90695]
[1617311410227,0.47128592,1970.3,1970.2,2.90695]
[1617311412725,0.47164889,1970.4,1970.2,2.90695]
[1617311419636,0.47189182,1970.5,1970.2,2.90695]
[1617311419837,0.47189182,1970.5,1970.4,2.90695]
[1617311420138,0.47194877,1970.6,1970.4,2.90695]
[1617311420336,0.47194877,1970.6,1970.5,86.2702]
[1617311420537,0.47200823,1970.7,1970.5,86.2702]
[1617311421137,0.4715034,1970.8,1970.5,86.2702]
[1617311421838,0.4715034,1970.8,1970.7,3.91555]
[1617311422240,0.4715034,1970.8,1970.7,2.90695]
[1617311422745,0.70720386,1970.9,1970.7,2.90695]
[1617311428649,0.70759281,1970.8,1970.7,2.90695]
[1617311429850,3.61454281,1970.8,1970.7,2.90695]
[1617311430051,2.90695,1970.8,1970.7,2.90695]
[1617311431254,2.90695,1970.8,1970.5,1.1621]
[1617311431454,2.90695,1970.8,1970.1,1.1925]
[1617311431653,81.7933,1970.6,1970.3,81.7933]
[1617311431854,0.47166283,1970.5,1970.3,81.7933]
[1617311432257,84.70025,1970.6,1970.3,81.7933]
[1617311432258,0.47185627,1970.4,1970.3,81.7933]
[1617311434057,0.47185627,1970.4,1970.3,84.70025]
[1617311439464,85.4080344,1970.6,1970.3,84.70025]
[1617311439465,0.94505798,1970.5,1970.3,84.70025]
[1617311440664,0.94512219,1970.4,1970.3,84.70025]
[1617311441365,1.18124618,1970.5,1970.3,84.70025]
[1617311442070,2.90695,1970.4,1970.3,84.70025]
[1617311442369,3.85193282,1970.4,1970.3,84.70025]
[1617311443066,2.90695,1970.4,1970.3,84.70025]
[1617311444567,2.90695,1970.4,1970.3,2.90695]
[1617311445667,80.01815,1970.4,1970.3,2.90695]
[1617311446167,80.89881158,1970.4,1970.3,2.90695]
[1617311447786,80.89881158,1970.4,1970.3,4.08795]
[1617311450277,81.84594391,1970.4,1970.3,4.08795]
[1617311450474,81.84594391,1970.4,1970.3,1.181]
[1617311451778,81.84594391,1970.4,1969.9,81.6825]
[1617311452178,0.47386876,1970.0,1969.9,81.6825]
[1617311452377,0.47386876,1970.0,1969.9,84.58945]
[1617311454381,0.71085583,1970.1,1969.9,84.58945]
[1617311456383,0.71085583,1970.1,1969.9,85.83895]
[1617311456984,0.47380997,1970.0,1969.9,85.83895]
[1617311459584,0.47380997,1970.0,1969.9,82.932]
[1617311460486,0.47380997,1970.0,1969.9,85.83895]
[1617311462889,0.47380997,1970.0,1969.9,4.15645]
[1617311463289,0.47343472,1970.1,1969.9,4.15645]
[1617311463689,2.07423585,1970.9,1969.9,4.15645]
[1617311463690,0.22059226,1970.2,1969.9,4.15645]
[1617311463889,0.22059226,1970.2,1970.1,61.7653]
[1617311464091,0.71000551,1970.6,1970.1,62.7697]
[1617311464392,0.05914809,1970.2,1970.1,62.7697]
[1617311465394,0.05912607,1970.3,1970.1,62.7697]
[1617311465595,0.0591462,1970.4,1970.1,62.7697]
[1617311466493,0.0591462,1970.4,1970.3,2.90695]
[1617311466694,0.0591462,1970.4,1970.3,4.22745]
[1617311467997,0.05910412,1970.5,1970.3,4.22745]
[1617311475406,4.12e-06,1970.5,1970.3,4.22745]
[1617311475608,4.12e-06,1970.5,1970.4,2.0]
[1617311476105,0.70777516,1971.1,1971.0,82.3589]
[1617311476306,0.70812638,1971.3,1971.0,84.8402]
[1617311476509,0.45512638,1971.3,1971.0,84.8402]
[1617311476912,0.45512638,1971.3,1971.2,3.90935]
[1617311477106,0.94434338,1971.6,1971.2,3.90935]
[1617311477406,0.68954338,1971.6,1971.2,3.90935]
[1617311477607,0.42103907,1971.5,1971.2,3.90935]
[1617311477910,1.18113832,1972.0,1971.2,3.90935]
[1617311478108,1.18113832,1972.0,1971.8,62.9663]
[1617311478309,1.18144431,1972.1,1971.8,65.0707]
[1617311478609,0.42377757,1971.9,1971.8,65.0707]
[1617311478812,0.42377757,1971.9,1971.8,67.97765]
[1617311479109,1.18147231,1972.2,1971.8,67.97765]
[1617311479409,0.4239208,1971.9,1971.8,67.97765]
[1617311479709,0.42274307,1972.3,1971.8,67.97765]
[1617311480209,0.42259181,1972.4,1971.8,67.97765]
[1617311480409,2.90695,1972.5,1971.8,67.97765]
[1617311480911,2.90695,1972.5,1972.4,3.92707552]
[1617311484815,2.04266418,1972.8,1972.4,1.4425]
[1617311485515,2.04266418,1972.8,1972.6,2.90695]
[1617311487417,2.90695,1972.7,1972.6,2.90695]
[1617311493527,2.90695,1972.9,1972.7,66.1303]
[1617311495528,2.90695,1972.9,1972.8,3.97235]
[1617311501434,2.90695,1972.9,1972.8,2.90695]
[1617311518250,2.90695,1972.9,1972.8,67.75285]
[1617311522058,2.90695,1973.2,1972.8,67.75285]
[1617311522458,2.90695,1973.2,1972.8,2.90695]
[1617311522659,12.6963,1973.4,1973.2,64.0]
[1617311522962,12.6963,1973.4,1973.2,65.4194]
[1617311524060,12.6963,1973.4,1973.3,2.90695]
[1617311529568,91.7507,1973.4,1973.1,79.0544]
[1617311530369,91.7507,1973.4,1973.2,2.90695]
[1617311532370,2.90695,1973.3,1973.2,2.90695]
[1617311534173,12.6963,1973.4,1973.2,2.90695]
[1617311537275,12.6963,1973.4,1973.3,66.8611]
[1617311554289,12.6763,1973.4,1973.3,66.8611]
[1617311556791,12.6763,1973.4,1973.0,2.90695]
[1617311557293,12.6763,1973.4,1972.8,65.0897]
[1617311557692,63.4062,1973.0,1972.8,65.0897]
[1617311558093,64.11153426,1973.0,1972.8,65.0897]
[1617311558992,2.90695,1972.9,1972.8,65.0897]
[1617311561795,2.90695,1972.9,1972.6,2.90695]
[1617311562895,2.90695,1972.7,1972.6,2.90695]
[1617311565298,2.90695,1972.7,1972.6,82.76165]
[1617311565698,2.90695,1972.7,1972.6,2.90695]
[1617311574611,0.70426006,1972.9,1972.7,57.0319]
[1617311575411,2.90695,1972.8,1972.7,59.93885]
[1617311579017,3.61134347,1972.8,1972.7,59.93885]
[1617311579216,0.70439347,1972.8,1972.7,57.0319]
[1617311579716,3.61134347,1972.8,1972.7,59.93885]
[1617311579916,2.90695,1972.8,1972.7,59.93885]
[1617311580418,3.61213788,1972.8,1972.7,59.93885]
[1617311581820,2.90695,1972.8,1972.7,59.93885]
[1617311583320,2.90695,1972.8,1972.7,2.90695]
[1617311584021,0.94132349,1972.9,1972.7,4.10915]
[1617311584721,3.84701882,1973.0,1972.7,4.10915]
[1617311585323,2.90695,1973.0,1972.7,4.10915]
[1617311585530,0.9399272,1973.1,1972.7,4.10915]
[1617311586122,0.9399272,1973.1,1973.0,2.90695]
[1617311587423,3.8470985,1973.2,1973.0,2.90695]
[1617311587624,3.8470985,1973.2,1973.1,75.9873]
[1617311588028,3.8470985,1973.2,1973.0,2.90695]
[1617311589727,0.93985442,1973.1,1973.0,2.90695]
[1617311592331,3.84648355,1973.2,1973.1,63.232]
[1617311592732,2.90695,1973.2,1973.1,63.232]
[1617311594534,2.90695,1973.2,1973.1,1.0188]
[1617311594734,2.05247506,1973.3,1973.0,4.10325]
[1617311595135,0.93990895,1973.1,1973.0,4.10325]
[1617311600641,0.93990895,1973.1,1973.0,2.90695]
[1617311603746,1.17668567,1973.1,1973.0,2.90695]
[1617311605849,1.17668567,1973.1,1973.0,4.51515]
[1617311618064,2.06450247,1973.2,1973.1,76.4849]
[1617311618867,5.84900084,1973.3,1973.1,76.4849]
[1617311619069,5.84900084,1973.3,1973.2,2.49635109]
[1617311625280,3.78445545,1973.3,1973.2,2.49635109]
[1617311628384,5.84803896,1973.3,1973.2,2.49635109]
[1617311630085,3.78445545,1973.3,1973.2,2.49635109]
[1617311631188,5.84884848,1973.3,1973.2,2.49635109]
[1617311633294,6.87784848,1973.3,1973.2,2.49635109]
[1617311634800,5.84884848,1973.3,1973.2,2.49635109]
[1617311638701,3.78445545,1973.3,1973.2,2.49635109]
[1617311639903,5.8548197,1973.3,1973.2,2.49635109]
[1617311645406,3.78445545,1973.3,1973.2,2.49635109]
[1617311646107,5.8562975,1973.3,1973.2,2.49635109]
[1617311647109,3.78445545,1973.3,1973.2,2.49635109]
[1617311648708,0.87750545,1973.3,1973.0,30.0]
[1617311649309,1.1827488,1973.2,1973.0,30.0]
[1617311649709,4.0896988,1973.2,1973.1,2.90695]
[1617311650209,4.50739516,1973.2,1973.1,2.90695]
[1617311652813,3.32464636,1973.2,1973.1,2.90695]
[1617311653513,0.41769636,1973.2,1973.0,30.0]
[1617311653914,1.1851428,1973.1,1973.0,30.0]
[1617311654116,1.1851428,1973.1,1973.0,32.90695]
[1617311654516,1.60366533,1973.1,1973.0,32.90695]
[1617311656428,1.1851428,1973.1,1973.0,32.90695]
[1617311656628,1.60416276,1973.1,1973.0,32.90695]
[1617311657030,1.1851428,1973.1,1973.0,32.90695]
[1617311659932,2.08177746,1973.2,1973.0,30.0]
[1617311660134,2.90695,1973.1,1973.0,30.0]
[1617311660834,3.32647935,1973.1,1973.0,30.0]
[1617311662938,6.79807181,1973.1,1973.0,30.0]
[1617311663744,8.88356686,1973.1,1973.0,30.0]
[1617311665943,10.09126686,1973.1,1973.0,30.0]
[1617311668955,8.00577181,1973.1,1973.0,30.0]
[1617311671956,6.79807181,1973.1,1973.0,30.0]
[1617311672756,6.79807181,1973.1,1973.0,32.90695]
[1617311681667,3.89112181,1973.1,1973.0,32.90695]
[1617311682369,2.98078486,1973.2,1973.0,32.90695]
[1617311682868,2.90695,1973.1,1973.0,32.90695]
[1617311683271,5.88337834,1973.1,1973.0,32.90695]
[1617311683568,6.30336116,1973.1,1973.0,32.90695]
[1617311683969,3.32693282,1973.1,1973.0,32.90695]
[1617311684974,6.3044814,1973.1,1973.0,32.90695]
[1617311686075,3.32693282,1973.1,1973.0,32.90695]
[1617311688176,3.32693282,1973.1,1973.0,34.34535]
[1617311690879,5.41233822,1973.1,1973.0,34.34535]
[1617311692183,2.50538822,1973.1,1973.0,31.4384]
[1617311692785,2.0854054,1973.1,1973.0,31.4384]
[1617311693484,4.9923554,1973.1,1973.0,32.90695]
[1617311694186,5.41238442,1973.1,1973.0,32.90695]
[1617311695389,2.50543442,1973.1,1973.0,30.0]
[1617311695888,4.9923554,1973.1,1973.0,32.90695]